bitfinex/quotes_ETHUSD_20241129
["timestamp","ask_amount","ask_price","bid_price","bid_amount"]
[1732853599944,3.10400451,3575.5,3575.2,0.09431923]
[1732853600263,2.79692,3575.4,3575.2,0.8259]
[1732853600466,3.10400451,3575.5,3575.2,0.8259]
[1732853600769,2.55400451,3575.5,3575.3,0.09421964]
[1732853601333,0.55,3575.1,3574.2,0.55871991]
[1732853601534,0.55,3574.5,3574.1,0.7778]
[1732853601946,2.79761,3574.5,3574.1,0.7778]
[1732853602129,3.0,3574.6,3574.1,0.7778]
[1732853602464,2.79765,3574.5,3574.1,0.7778]
[1732853603773,5.79746,3574.7,3574.1,0.7778]
[1732853604547,3.0,3574.7,3574.1,0.7778]
[1732853604775,3.0,3575.1,3574.4,0.7696]
[1732853605067,4.0,3575.4,3574.6,3.56703]
[1732853605569,6.7969,3575.4,3574.6,0.7696]
[1732853605870,2.79697,3575.3,3574.8,0.7559]
[1732853606543,3.0,3575.2,3574.8,0.7559]
[1732853607332,3.0,3575.3,3574.8,0.7559]
[1732853607547,4.0,3575.4,3574.9,0.7939]
[1732853608688,3.0,3575.5,3575.0,2.79718]
[1732853608892,5.79661,3575.8,3575.1,2.79712]
[1732853609182,2.55400451,3575.5,3575.1,0.08806488]
[1732853609389,2.79691,3575.4,3574.7,3.56455]
[1732853609592,2.79691,3575.4,3574.8,0.08806329]
[1732853609794,2.55400451,3575.5,3574.8,0.08806329]
[1732853609795,5.35082451,3575.5,3574.8,2.88540329]
[1732853610392,8.14769451,3575.5,3574.8,2.88540329]
[1732853610562,2.7969,3575.4,3574.8,0.08806329]
[1732853610959,2.7969,3575.4,3574.7,0.7672]
[1732853611165,2.7969,3575.4,3574.9,0.08804279]
[1732853611363,2.7969,3575.4,3574.8,0.08807591]
[1732853611571,2.79697,3575.3,3574.9,0.08815634]
[1732853611784,2.79697,3575.3,3574.7,0.7672]
[1732853612156,2.79697,3575.3,3574.8,0.08816737]
[1732853612583,2.55400451,3575.5,3574.8,2.79733]
[1732853612771,5.35082451,3575.5,3575.0,0.7675]
[1732853612981,5.35082451,3575.5,3575.1,0.08814057]
[1732853614595,3.0,3575.6,3575.1,0.08814057]
[1732853615162,3.0,3575.6,3575.3,0.7568]
[1732853615600,3.0,3575.6,3575.4,0.08810747]
[1732853615809,0.7833,3576.3,3575.4,0.08810747]
[1732853615810,0.7833,3576.6,3575.9,2.79642]
[1732853616107,4.0,3576.0,3575.7,0.7568]
[1732853616602,4.0,3576.0,3575.7,3.55343]
[1732853616909,4.0,3576.0,3575.4,1.12099475]
[1732853616910,5.35063451,3575.8,3575.4,1.12099475]
[1732853617093,2.79681,3575.5,3574.6,2.79745]
[1732853617268,3.0,3575.7,3574.8,2.79729]
[1732853617605,2.55400451,3575.8,3574.4,2.79759]
[1732853617606,3.0,3575.8,3575.2,0.8006]
[1732853617812,4.0,3576.0,3574.4,0.8006]
[1732853617977,2.79656,3575.9,3575.2,2.79702]
[1732853618304,4.0,3576.0,3575.3,0.8006]
[1732853618487,6.79643,3576.0,3575.3,3.59754]
[1732853618727,6.79643,3576.0,3575.3,0.8006]
[1732853619066,2.7965,3575.9,3575.3,0.8006]
[1732853619510,4.0,3576.0,3575.3,3.957313]
[1732853620022,4.0,3576.0,3575.5,0.8287]
[1732853620171,4.0,3576.0,3575.5,3.6255]
[1732853620667,6.79644,3576.0,3575.5,0.8287]
[1732853621002,4.0,3576.0,3575.5,3.6255]
[1732853621170,4.0,3576.0,3575.5,4.3037223]
[1732853621603,3.0,3576.0,3575.5,4.3037223]
[1732853622109,3.0,3576.1,3575.5,4.3037223]
[1732853622270,2.79633,3576.2,3575.5,4.3037223]
[1732853622468,5.35014451,3576.4,3575.8,0.7894]
[1732853622912,2.55400451,3576.4,3575.8,3.58595]
[1732853623064,0.55,3576.5,3575.9,3.58589]
[1732853623468,3.34608,3576.5,3575.9,0.7894]
[1732853623668,2.55400451,3576.4,3575.9,0.7894]
[1732853623909,2.55400451,3576.4,3576.0,0.358605]
[1732853625405,3.57894,3577.0,3576.2,0.7513]
[1732853625406,3.55,3576.7,3576.2,0.7513]
[1732853626305,6.34587,3576.7,3576.2,0.7513]
[1732853626504,2.79596,3576.6,3576.2,0.7513]
[1732853627005,3.55,3576.7,3576.2,0.7513]
[1732853627006,3.0,3576.7,3576.2,0.7513]
[1732853627306,2.55400451,3576.8,3576.2,0.7513]
[1732853627516,2.79571,3576.9,3576.3,0.0874847]
[1732853627689,5.34971451,3576.9,3576.3,0.0874847]
[1732853627868,2.79579,3576.8,3576.3,0.0874847]
[1732853628407,2.79579,3576.8,3576.2,0.7513]
[1732853628578,0.55,3576.8,3576.4,0.08747368]
[1732853628777,2.79602,3576.6,3576.3,0.0874847]
[1732853628980,2.79602,3576.6,3576.2,0.8301]
[1732853629172,2.79602,3576.6,3576.4,0.08747368]
[1732853629375,2.79602,3576.6,3576.3,0.0874847]
[1732853629681,2.79602,3576.6,3576.2,0.8301]
[1732853630016,0.0141276,3576.5,3576.4,0.08747368]
[1732853630234,2.79602,3576.6,3576.3,0.0874847]
[1732853630396,3.3458,3576.8,3576.4,0.08747368]
[1732853630596,2.7958,3576.8,3576.4,0.08747368]
[1732853630826,2.55400451,3576.9,3576.2,3.62635]
[1732853631329,2.79583,3576.8,3576.3,0.0874847]
[1732853631534,2.79583,3576.8,3576.2,0.8301]
[1732853631829,2.55400451,3576.9,3576.4,0.08747368]
[1732853632132,2.7958,3576.8,3576.5,0.08746265]
[1732853632295,2.7958,3576.8,3576.2,3.62635]
[1732853632505,2.55400451,3576.9,3576.6,0.08745162]
[1732853632704,2.55400451,3576.9,3576.2,3.62635]
[1732853632901,5.34974451,3576.9,3576.7,0.08724826]
[1732853633125,5.34974451,3576.9,3576.2,0.8301]
[1732853633325,5.34974451,3576.9,3576.8,0.08723724]
[1732853633838,2.79564,3577.0,3576.8,0.08723724]
[1732853634011,2.79564,3577.0,3576.7,0.8052]
[1732853634212,6.34564,3577.0,3576.9,0.08722622]
[1732853634406,6.34564,3577.0,3576.8,0.08723724]
[1732853634634,6.34564,3577.0,3576.7,0.8052]
[1732853634635,3.55,3577.0,3576.7,0.8052]
[1732853634841,2.79573,3576.9,3576.7,0.8052]
[1732853635027,3.55,3577.0,3576.7,0.8052]
[1732853635336,2.79579,3576.8,3576.7,0.8052]
[1732853635525,2.79588,3576.7,3576.4,0.7592]
[1732853635832,0.0141276,3576.6,3576.4,0.7592]
[1732853636239,0.0141276,3576.8,3576.4,0.7592]
[1732853636625,2.79582,3576.8,3576.4,0.7592]
[1732853637144,2.8099476,3576.8,3576.4,0.7592]
[1732853637500,2.79592,3576.7,3576.4,0.7592]
[1732853637695,0.0141276,3576.6,3576.4,0.7592]
[1732853638236,2.8100876,3576.6,3576.4,0.7592]
[1732853638416,2.79586,3576.8,3576.4,0.7592]
[1732853638936,0.0141276,3576.7,3576.4,0.7592]
[1732853639125,0.55,3577.0,3576.4,0.7592]
[1732853639126,2.79595,3576.6,3576.4,0.7592]
[1732853639938,2.7958,3576.8,3576.4,0.7592]
[1732853641613,0.55,3577.0,3576.4,0.7592]
[1732853641614,0.55,3576.9,3576.4,0.7592]
[1732853641933,2.55400451,3577.6,3576.6,0.829]
[1732853642103,3.0,3577.4,3576.6,0.829]
[1732853642303,2.8095376,3577.3,3576.6,3.62494]
[1732853642544,0.0141276,3577.3,3576.7,2.88306728]
[1732853642750,2.79524,3577.5,3576.8,3.55658]
[1732853643066,2.79534,3577.4,3576.8,3.64377626]
[1732853643235,0.0141276,3577.3,3576.8,3.64377626]
[1732853643539,2.79534,3577.4,3576.8,3.64377626]
[1732853643737,5.34921451,3577.6,3576.8,3.64377626]
[1732853644046,5.79526,3577.5,3576.8,3.64377626]
[1732853644347,5.79526,3577.5,3576.9,2.7957]
[1732853644553,2.79494,3577.9,3576.9,1.53259127]
[1732853644708,2.79479,3578.1,3577.4,2.79526]
[1732853644906,2.79479,3578.1,3577.5,0.8016]
[1732853645111,2.79462,3578.3,3577.5,0.88828734]
[1732853645340,2.79451,3578.5,3577.9,0.8016]
[1732853645849,2.79451,3578.5,3578.0,0.08663225]
[1732853646036,2.55400451,3578.8,3578.0,0.08663225]
[1732853646214,2.79437,3578.7,3578.0,0.08663225]
[1732853646557,3.34439,3578.6,3578.1,0.08662123]
[1732853647025,0.55,3578.7,3578.1,0.08662123]
[1732853647238,2.55400451,3578.8,3578.1,0.08662123]
[1732853647431,5.34826451,3578.8,3578.1,0.08662123]
[1732853647613,5.34826451,3578.8,3578.2,3.59629]
[1732853647614,2.55400451,3578.8,3578.2,3.59629]
[1732853647960,2.55400451,3578.8,3578.3,0.0865992]
[1732853648331,2.79407,3579.0,3578.3,2.8812092]
[1732853648514,0.0141276,3578.9,3578.3,2.8812092]
[1732853649117,2.8082976,3578.9,3578.3,0.0865992]
[1732853649337,2.79417,3578.9,3578.3,0.0865992]
[1732853649941,2.8083576,3578.8,3578.3,0.0865992]
[1732853650516,5.36243211,3578.8,3578.3,0.0865992]
[1732853650721,5.36243211,3578.8,3578.2,0.8016]
[1732853650722,5.34830451,3578.8,3578.2,0.8016]
[1732853651357,3.0,3579.1,3578.5,0.7587]
[1732853651665,0.0141276,3579.0,3578.5,0.7587]
[1732853652031,0.0141276,3579.0,3578.6,0.08608419]
[1732853652241,2.79418,3578.9,3578.6,0.08608419]
[1732853652424,0.0141276,3579.0,3578.6,0.08608419]
[1732853652627,2.8082076,3579.0,3578.6,0.08608419]
[1732853653731,0.0141276,3579.0,3578.6,0.08608419]
[1732853654058,2.79423,3578.8,3578.6,0.08608419]
[1732853654355,3.34431,3578.7,3578.6,0.08608419]
[1732853654560,2.79442,3578.6,3578.2,0.7551]
[1732853655069,2.79442,3578.6,3577.9,0.7534]
[1732853655220,2.79454,3578.4,3577.9,0.7534]
[1732853655421,2.79447,3578.5,3577.9,0.7534]
[1732853656434,0.55,3578.5,3577.9,0.7534]
[1732853656860,2.79446,3578.5,3577.9,0.7534]
[1732853657169,3.34434,3578.7,3577.9,3.54833]
[1732853657515,2.79444,3578.6,3577.9,0.7534]
[1732853657759,2.79459,3578.4,3577.9,0.7534]
[1732853658064,2.79516,3577.7,3576.9,0.8211]
[1732853658245,2.79547,3577.3,3576.9,0.8211]
[1732853658558,2.79563,3577.0,3576.9,0.8211]
[1732853659141,2.8096376,3577.2,3576.9,0.8211]
[1732853659454,2.79541,3577.3,3576.9,0.90450115]
[1732853660759,2.79541,3577.3,3576.9,0.8211]
[1732853660961,2.79541,3577.3,3577.0,0.08339643]
[1732853661374,2.79549,3577.2,3577.0,0.08339643]
[1732853665859,2.79556,3577.1,3577.0,0.08339643]
[1732853666272,2.79556,3577.1,3576.9,0.8211]
[1732853667353,2.79556,3577.1,3577.0,0.08350355]
[1732853667593,2.79556,3577.1,3576.9,0.8211]
[1732853667751,0.55,3577.3,3576.9,0.8211]
[1732853667957,2.79543,3577.3,3576.9,0.8211]
[1732853668170,2.79517,3577.6,3577.0,0.08350355]
[1732853668374,0.55,3577.5,3577.0,0.08350355]
[1732853668579,3.34528,3577.5,3576.9,0.8211]
[1732853668875,3.0,3577.6,3577.0,0.0838973]
[1732853669186,3.0,3577.6,3576.9,3.61681]
[1732853669358,3.0,3577.6,3577.0,2.79563]
[1732853669544,5.79519,3577.6,3577.0,0.08383744]
[1732853670253,2.79533,3577.4,3577.0,0.08383744]
[1732853670440,0.55,3577.5,3577.0,0.08383744]
[1732853670646,2.79542,3577.3,3577.0,0.08383744]
[1732853674489,2.8096076,3577.2,3577.0,0.08383744]
[1732853674896,2.79548,3577.2,3576.9,0.8211]
[1732853675107,2.79548,3577.2,3577.1,0.08387052]
[1732853675294,6.79548,3577.2,3576.9,0.8211]
[1732853675475,2.79556,3577.1,3576.9,0.8211]
[1732853676420,2.79556,3577.1,3575.8,0.7875]
[1732853676621,2.79577,3576.9,3576.2,0.7875]
[1732853677374,2.79577,3576.9,3576.2,3.58374]
[1732853678385,5.59118,3577.1,3576.3,2.79611]
[1732853678587,2.79556,3577.1,3576.3,2.79611]
[1732853678815,2.79556,3577.1,3576.4,0.637994]
[1732853679013,2.79565,3577.0,3576.4,0.637994]
[1732853680514,2.79581,3576.8,3576.4,0.637994]
[1732853680701,2.79581,3576.8,3576.2,0.7875]
[1732853681424,3.34573,3576.9,3576.2,3.58374]
[1732853681782,2.79557,3577.1,3576.4,2.79604]
[1732853681992,2.79557,3577.1,3576.5,0.7501]
[1732853682195,4.0,3577.2,3576.5,0.7501]
[1732853682525,6.79555,3577.2,3576.6,0.08407059]
[1732853687116,2.79556,3577.1,3576.6,0.08407059]
[1732853687706,2.79556,3577.1,3576.7,0.7976]
[1732853687906,2.79556,3577.1,3576.7,0.88162805]
[1732853688141,6.34542,3577.3,3576.7,0.88162805]
[1732853688328,3.0,3577.3,3576.7,0.88162805]
[1732853688532,3.0,3577.3,3576.7,3.67741805]
[1732853688835,0.0141276,3577.2,3576.7,0.88162805]
[1732853689443,2.8096576,3577.2,3576.7,0.88162805]
[1732853690149,2.79553,3577.2,3576.7,0.88162805]
[1732853692234,2.79579,3576.8,3576.7,0.08402805]
[1732853692445,2.8099176,3576.8,3576.7,0.08402805]
[1732853692634,2.79589,3576.7,3576.4,0.7523]
[1732853693165,0.0141276,3576.6,3576.4,0.7523]
[1732853693749,2.79633,3576.2,3575.8,0.7559]
[1732853694131,4.05000698,3576.3,3575.8,0.7559]
[1732853694335,0.55,3576.2,3575.2,0.7559]
[1732853694518,0.0141276,3576.1,3575.4,2.79688]
[1732853694720,0.0141276,3576.1,3575.3,0.355301]
[1732853695159,3.34633,3576.2,3575.4,2.79686]
[1732853695361,3.34633,3576.2,3575.5,2.79674]
[1732853695525,3.34633,3576.2,3575.6,0.7797]
[1732853695726,0.0141276,3576.1,3575.6,1.1728741]
[1732853696327,4.0141276,3576.1,3575.6,1.1728741]
[1732853696653,4.0,3576.1,3575.6,1.1728741]
[1732853698136,4.0,3576.1,3575.6,3.9695841]
[1732853698667,4.0,3576.1,3575.7,2.79663]
[1732853698823,4.0,3576.1,3575.7,3.47326841]
[1732853699022,4.0,3576.1,3575.7,0.67663841]
[1732853699324,4.0,3576.1,3575.9,0.803]
[1732853701320,4.0,3576.1,3575.6,1.1930741]
[1732853701629,2.79627,3576.2,3575.6,1.1930741]
[1732853702563,3.55,3576.4,3575.9,2.79647]
[1732853702768,3.34596,3576.6,3576.0,0.8078]
[1732853703067,4.0,3576.1,3576.0,0.8078]
[1732853704325,4.0,3576.1,3576.0,0.08433849]
[1732853704564,2.79621,3576.3,3576.0,0.08433849]
[1732853704759,2.79621,3576.3,3575.6,3.56111]
[1732853704962,2.79621,3576.3,3576.1,0.08432747]
[1732853705125,4.0,3576.2,3575.6,3.56111]
[1732853705333,6.79626,3576.2,3575.6,3.56111]
[1732853705530,2.79642,3576.0,3575.6,0.7644]
[1732853705765,0.7974276,3576.1,3575.2,2.79698]
[1732853706067,4.0,3575.9,3575.3,4.236647]
[1732853706523,4.0,3575.9,3575.5,2.79674]
[1732853706729,4.0,3575.9,3575.5,0.7928]
[1732853707157,0.0141276,3575.8,3575.3,0.646917]
[1732853707326,3.34664,3575.8,3575.2,0.7928]
[1732853707531,10.34664,3575.8,3575.2,0.7928]
[1732853708342,7.55,3575.8,3575.2,3.58983]
[1732853710231,7.55,3575.8,3575.0,0.875]
[1732853710232,2.8108276,3575.7,3575.1,0.8153]
[1732853710467,4.0,3575.6,3575.1,0.8153]
[1732853710664,4.0,3575.6,3575.1,1.264065]
[1732853710865,4.0,3575.6,3575.5,3.61101]
[1732853711569,0.55,3576.2,3575.6,2.79671]
[1732853712071,4.0,3575.7,3575.6,2.79671]
[1732853712431,0.55,3576.2,3575.6,2.79671]
[1732853715069,0.7563,3576.5,3576.0,3.6004]
[1732853715274,4.0,3576.1,3576.0,3.6004]
[1732853716579,1.24004171,3577.1,3576.4,3.57484]
[1732853716743,4.0,3576.5,3576.4,3.57484]
[1732853717478,2.02334171,3577.2,3576.5,2.79601]
[1732853717638,4.81883171,3577.2,3576.5,2.79601]
[1732853717952,3.0,3577.3,3576.7,2.79585]
[1732853718149,3.0,3577.3,3576.4,0.7788]
[1732853718462,3.0,3577.3,3576.7,2.79584]
[1732853718634,4.0,3576.8,3576.7,2.79584]
[1732853719084,0.7833,3577.5,3576.8,2.79577]
[1732853719085,6.57855,3577.5,3576.8,2.79577]
[1732853719645,0.7833,3577.5,3576.3,2.79618]
[1732853719878,0.55,3577.7,3577.1,0.7954]
[1732853720061,3.34509,3577.7,3577.1,0.7954]
[1732853720363,3.34509,3577.7,3577.2,0.08425032]
[1732853720569,4.0,3577.3,3577.2,0.08425032]
[1732853721172,4.0,3577.3,3577.1,0.7954]
[1732853721391,4.0,3577.3,3577.2,0.08425032]
[1732853721559,2.79517,3577.6,3577.2,0.08425032]
[1732853722284,7.1223,3577.3,3577.2,0.08425032]
[1732853722454,11.1223,3577.3,3577.2,0.08425032]
[1732853722782,2.79592,3576.7,3576.1,0.765]
[1732853723137,2.79592,3576.7,3576.2,0.08436057]
[1732853723352,0.7769,3576.8,3576.2,0.08436057]
[1732853723353,2.79606,3576.5,3576.2,0.08436057]
[1732853723573,0.55,3576.3,3576.2,0.08436057]
[1732853723780,4.0,3576.6,3575.7,0.772]
[1732853723951,4.0,3576.6,3576.2,0.08436057]
[1732853724153,4.0,3576.6,3576.0,2.79642]
[1732853724387,4.0,3576.6,3575.8,2.79656]
[1732853724388,4.0,3576.6,3576.3,0.08434954]
[1732853724543,4.0,3576.6,3576.2,2.79625]
[1732853724739,3.0,3576.5,3576.3,0.08434954]
[1732853724944,4.0,3576.4,3576.0,2.79641]
[1732853725143,4.0,3576.4,3576.1,0.0843716]
[1732853725446,4.0,3576.4,3576.1,2.8807016]
[1732853725779,4.0,3576.4,3576.3,0.7589]
[1732853726181,4.0,3576.4,3576.3,0.84308561]
[1732853726967,4.0,3576.4,3576.3,3.63926561]
[1732853727696,4.0,3576.4,3576.3,0.84308561]
[1732853728401,2.79573,3576.9,3576.3,0.84308561]
[1732853729259,0.55,3577.0,3576.3,3.63926561]
[1732853729901,0.5641276,3577.0,3576.3,0.84308561]
[1732853730198,2.79581,3576.8,3576.3,0.7589]
[1732853730385,0.5641276,3577.0,3576.0,0.7542]
[1732853730556,3.57934,3576.5,3576.4,0.08417458]
[1732853730756,7.57934,3576.5,3576.0,0.7542]
[1732853731002,7.57934,3576.5,3576.1,0.08420767]
[1732853731360,4.7833,3576.5,3576.1,0.08420767]
[1732853731972,0.0141276,3576.4,3576.1,0.08420767]
[1732853732156,2.79619,3576.3,3575.7,0.7576]
[1732853732360,2.79619,3576.3,3576.2,0.08419664]
[1732853732562,2.79619,3576.3,3575.7,0.7576]
[1732853732806,3.34619,3576.3,3576.2,0.08419664]
[1732853733002,2.79628,3576.2,3575.5,0.7576]
[1732853733360,2.79628,3576.2,3575.6,0.08426282]
[1732853735702,0.55,3576.3,3575.6,2.88099282]
[1732853736573,2.79635,3576.1,3575.6,0.08426282]
[1732853736772,2.79648,3576.0,3575.6,0.08426282]
[1732853737801,0.0141276,3576.1,3575.7,0.08171095]
[1732853738107,2.79656,3575.9,3575.7,0.08171095]
[1732853738264,2.79656,3575.9,3575.2,3.54864]
[1732853738460,3.34656,3575.9,3575.8,0.08169992]
[1732853738782,3.34656,3575.9,3575.2,3.54864]
[1732853738996,0.55,3576.0,3575.3,2.79689]
[1732853739195,3.34642,3576.0,3575.3,0.08175508]
[1732853739395,0.55,3576.0,3575.3,0.08175508]
[1732853739579,2.79652,3575.9,3575.3,0.08175508]
[1732853739899,2.79652,3575.9,3575.3,2.87870508]
[1732853740275,0.55,3576.0,3575.3,2.87870508]
[1732853740487,0.55,3576.0,3575.3,0.08175508]
[1732853740676,3.34642,3576.0,3575.4,2.79686]
[1732853740874,0.55,3576.0,3575.4,2.79686]
[1732853741162,2.79626,3576.2,3575.5,2.87870327]
[1732853741380,6.57941,3576.4,3575.6,0.8216]
[1732853741381,4.58650336,3576.3,3575.6,0.8216]
[1732853741904,4.58650336,3576.3,3575.7,2.79664]
[1732853742397,1.79031336,3576.3,3575.8,2.87844017]
[1732853742582,4.0,3575.9,3575.8,0.08187017]
[1732853742981,4.0,3575.9,3575.8,3.16658102]
[1732853743306,1.24031336,3576.6,3575.8,3.24840075]
[1732853743475,4.24031336,3576.6,3575.9,2.79644]
[1732853743672,4.24031336,3576.6,3576.0,2.79641]
[1732853743872,4.0,3576.1,3576.0,2.87820767]
[1732853745503,4.0,3576.1,3576.0,0.08179767]
[1732853746209,4.0,3576.1,3576.0,2.87821767]
[1732853747307,4.0,3576.1,3576.0,3.20304054]
[1732853747507,4.0,3576.1,3576.0,4.02294054]
[1732853748010,2.79582,3576.8,3576.0,1.22652054]
[1732853748207,2.79582,3576.8,3576.1,2.79631]
[1732853748572,2.79582,3576.8,3576.2,0.08177561]
[1732853749203,3.55,3576.9,3576.4,2.79608]
[1732853749386,3.55,3576.9,3576.2,0.10973545]
[1732853749598,3.55,3576.9,3576.5,0.08156913]
[1732853749777,6.34573,3576.9,3576.2,2.79619]
[1732853749978,6.34573,3576.9,3576.6,0.0815581]
[1732853750233,0.55,3576.9,3576.4,0.7707]
[1732853750403,0.55,3576.9,3576.7,0.08154708]
[1732853750733,3.57871,3577.3,3576.4,0.7707]
[1732853750734,0.55,3577.3,3576.5,2.79595]
[1732853750937,0.55,3577.3,3576.8,0.08153605]
[1732853751142,4.24031336,3577.4,3576.8,0.7707]
[1732853751143,4.0,3576.9,3576.8,0.7707]
[1732853751700,4.0,3576.9,3576.8,3.56647]
[1732853752341,4.81878336,3577.6,3576.9,2.79571]
[1732853752629,3.34526,3577.5,3576.8,0.7707]
[1732853752828,4.03564336,3577.4,3576.8,0.7707]
[1732853753231,4.03564336,3577.4,3576.8,3.56647]
[1732853753433,0.55,3577.5,3576.9,2.79566]
[1732853753736,4.24031336,3577.6,3577.0,2.79558]
[1732853753969,1.24031336,3577.6,3577.0,2.79558]
[1732853754918,1.24031336,3577.6,3577.1,2.79552]
[1732853755131,0.55,3577.7,3577.2,0.7753]
[1732853755513,3.55,3577.7,3577.2,0.7753]
[1732853756151,1.24031336,3577.6,3577.2,0.7753]
[1732853756311,1.24031336,3577.6,3576.9,0.7984]
[1732853756513,6.3451,3577.7,3576.9,0.7984]
[1732853756514,1.24031336,3577.4,3576.9,3.59411]
[1732853756823,0.55,3577.3,3576.9,0.7984]
[1732853758254,0.7833,3577.5,3576.9,3.5941]
[1732853758255,0.55,3577.5,3576.9,3.5941]
[1732853758554,0.55,3577.5,3576.9,0.7984]
[1732853758723,3.34525,3577.5,3576.9,0.7984]
[1732853759112,0.55,3577.3,3577.0,0.08129967]
[1732853759349,1.79031336,3577.3,3577.0,0.08129967]
[1732853759853,1.79031336,3577.3,3577.1,0.08109641]
[1732853759854,4.58578336,3577.3,3577.1,0.08109641]
[1732853760018,7.57878,3577.2,3577.1,0.08109641]
[1732853760214,7.57878,3577.2,3576.6,3.62234]
[1732853760215,4.7833,3577.2,3576.6,3.62234]
[1732853760527,0.55,3577.1,3576.4,2.7961]
[1732853760736,0.55,3577.1,3576.3,3.56238]
[1732853761249,0.55,3577.1,3576.4,2.7961]
[1732853761515,0.55,3577.1,3576.6,2.79591]
[1732853761664,0.55,3577.1,3576.6,2.79594]
[1732853764541,0.55,3577.1,3576.7,0.08106803]
[1732853765444,0.55,3577.1,3576.3,0.7662]
[1732853765647,0.55,3577.1,3576.8,0.081057]
[1732853765847,0.55,3577.1,3576.5,2.79601]
[1732853766056,0.55,3577.1,3576.9,0.08104598]
[1732853766365,0.55,3577.1,3577.0,0.08103496]
[1732853766671,4.55,3577.1,3576.5,2.79601]
[1732853766871,0.55,3577.1,3577.0,0.08103496]
[1732853767044,0.55,3577.1,3576.6,2.79593]
[1732853767249,0.55,3577.1,3577.0,0.08103496]
[1732853767729,0.55,3577.1,3576.6,2.79593]
[1732853767933,0.55,3577.1,3576.7,0.0811153]
[1732853769000,0.55,3577.1,3576.7,2.8769853]
[1732853769176,2.79508,3577.8,3577.1,2.7955]
[1732853769670,2.79508,3577.8,3577.2,0.08106333]
[1732853769872,4.0,3577.3,3577.2,0.08106333]
[1732853770076,2.79508,3577.8,3577.2,0.08106333]
[1732853770286,2.79511,3577.7,3577.2,0.08106333]
[1732853770451,1.24031336,3577.7,3577.2,0.08106333]
[1732853770661,1.24031336,3577.7,3577.0,2.79562]
[1732853770662,2.79518,3577.6,3577.0,2.79562]
[1732853771339,0.55,3577.6,3577.0,2.79562]
[1732853771558,0.55,3577.6,3577.1,0.08085066]
[1732853771774,0.55,3577.6,3577.0,2.79562]
[1732853771978,0.55,3577.6,3577.1,0.08085066]
[1732853772137,0.55,3577.6,3577.0,2.79562]
[1732853772342,0.55,3577.6,3577.1,0.08085066]
[1732853772647,0.55,3577.6,3577.0,2.79562]
[1732853773046,0.55,3577.6,3577.1,0.08085066]
[1732853773488,0.55,3577.6,3577.0,2.79562]
[1732853773993,0.55,3577.6,3577.1,2.87640066]
[1732853778189,0.55,3577.6,3577.1,0.08085066]
[1732853778489,0.55,3577.6,3576.9,2.79567]
[1732853778655,0.55,3577.6,3577.2,0.08083964]
[1732853778850,3.34518,3577.6,3576.9,2.79567]
[1732853779488,3.34518,3577.6,3577.0,0.08083963]
[1732853779781,3.34518,3577.6,3577.0,2.87646963]
[1732853780318,0.55,3577.6,3577.0,0.08083963]
[1732853780478,2.79525,3577.5,3577.0,0.08083963]
[1732853780679,0.55,3577.1,3576.8,0.7692]
[1732853782279,0.55,3577.2,3576.8,0.7692]
[1732853786201,0.55,3577.4,3576.8,3.56496]
[1732853786542,0.55,3577.3,3576.8,3.56496]
[1732853787521,1.24031336,3577.6,3576.8,3.56496]
[1732853787522,0.55,3577.6,3576.8,0.7692]
[1732853787827,0.55,3577.6,3577.0,2.79561]
[1732853788050,0.55,3577.6,3577.1,2.79555]
[1732853789614,3.34519,3577.6,3576.9,3.57484]
[1732853789925,2.79527,3577.5,3576.9,0.7792]
[1732853790236,3.34546,3577.3,3576.6,2.79588]
[1732853791525,2.79548,3577.2,3576.6,2.79588]
[1732853791691,0.55,3577.3,3576.6,2.79588]
[1732853791887,0.55,3577.3,3576.7,2.79587]
[1732853792092,0.55,3577.3,3576.7,2.87663558]
[1732853792330,0.55,3577.3,3576.8,2.79576]
[1732853792840,0.55,3577.3,3576.9,0.83844353]
[1732853793408,0.55,3577.4,3576.9,0.83844353]
[1732853793749,3.34534,3577.4,3576.9,0.83844353]
[1732853794047,0.55,3577.6,3576.9,0.83844353]
[1732853794207,4.03542336,3577.7,3576.9,0.83844353]
[1732853794546,2.7952,3577.6,3576.9,3.5534]
[1732853794838,2.7952,3577.6,3577.0,0.08083018]
[1732853795206,1.24031336,3577.7,3577.0,0.08083018]
[1732853795402,4.03541336,3577.7,3577.0,2.87644018]
[1732853795631,6.14041,3577.6,3577.0,0.08083018]
[1732853795830,0.55,3577.3,3577.0,0.08083018]
[1732853797045,1.24031336,3577.4,3577.0,2.87646018]
[1732853797213,0.55,3577.8,3577.1,2.79554]
[1732853797405,0.55,3577.8,3577.2,0.08076088]
[1732853798038,0.55,3577.8,3577.3,0.7657]
[1732853798234,1.79031336,3577.6,3577.3,0.7657]
[1732853798512,4.58550336,3577.6,3577.4,0.08073884]
[1732853798828,4.58550336,3577.6,3577.0,0.7657]
[1732853799011,4.0,3577.4,3577.0,0.7657]
[1732853799584,4.0,3577.4,3577.2,2.79544]
[1732853799750,4.0,3577.4,3577.0,3.56132]
[1732853801746,4.0,3577.4,3577.1,2.79553]
[1732853802088,0.55,3577.8,3577.2,2.79542]
[1732853802748,0.7833,3578.1,3577.5,2.79524]
[1732853803082,2.79487,3578.0,3577.5,0.774]
[1732853803456,0.7833,3578.1,3577.5,0.774]
[1732853803646,7.03505336,3578.2,3577.5,0.774]
[1732853803975,2.79478,3578.1,3577.5,0.774]
[1732853804176,0.55,3578.0,3577.5,0.774]
[1732853805486,0.55,3577.7,3577.1,3.62185]
[1732853805644,0.55,3577.7,3577.2,0.425756]